bitfinex/quotes_BTCUSD_20220111
["timestamp","ask_amount","ask_price","bid_price","bid_amount"]
[1641895216679,0.01744929,41979.0,41978.0,1.66747121]
[1641895216879,0.01744929,41979.0,41978.0,1.64847121]
[1641895217280,0.00085568,41981.0,41978.0,1.64847121]
[1641895217482,0.00085568,41981.0,41980.0,0.373647]
[1641895217682,0.00085568,41981.0,41980.0,0.9168789]
[1641895217925,0.059533,41986.0,41980.0,0.9168789]
[1641895218125,0.00085566,41983.0,41980.0,0.9168789]
[1641895218325,0.00085566,41983.0,41982.0,0.64126138]
[1641895218724,0.00085566,41983.0,41982.0,0.75079538]
[1641895218925,0.00085566,41983.0,41982.0,1.15316344]
[1641895219125,0.059533,41986.0,41982.0,1.09362944]
[1641895219330,0.00085565,41985.0,41982.0,1.09362944]
[1641895219525,0.00085565,41985.0,41982.0,0.70426138]
[1641895219725,0.06039065,41985.0,41983.0,0.119066]
[1641895220026,0.01744929,41984.0,41983.0,0.119066]
[1641895220225,0.01744929,41984.0,41983.0,0.2107389]
[1641895220426,0.01744929,41984.0,41983.0,0.48775809]
[1641895220624,0.01744929,41984.0,41983.0,0.86140509]
[1641895221032,0.01744929,41984.0,41983.0,0.81140509]
[1641895221228,0.01744929,41984.0,41983.0,0.492713]
[1641895221679,0.01744929,41984.0,41983.0,0.505713]
[1641895222477,0.01744929,41984.0,41983.0,0.132066]
[1641895223078,0.06744929,41984.0,41983.0,0.132066]
[1641895223879,0.01744929,41984.0,41983.0,0.132066]
[1641895224080,0.3853643,41984.0,41983.0,0.132066]
[1641895224280,2.77351517,41984.0,41983.0,0.013]
[1641895224480,3.14681817,41984.0,41983.0,0.013]
[1641895224680,2.77479225,41984.0,41983.0,0.01527272]
[1641895224880,3.14809525,41984.0,41983.0,0.01527272]
[1641895225080,3.14809525,41984.0,41983.0,0.00227272]
[1641895225281,0.75994438,41984.0,41983.0,0.00227272]
[1641895225535,0.40164138,41984.0,41983.0,0.00327272]
[1641895225736,1.12494438,41984.0,41983.0,0.00327272]
[1641895226635,0.77494438,41984.0,41983.0,0.00327272]
[1641895226936,0.75994438,41984.0,41983.0,0.00227272]
[1641895227335,0.38664138,41984.0,41983.0,0.00227272]
[1641895227535,0.40264138,41984.0,41983.0,0.00227272]
[1641895228836,0.38664138,41984.0,41983.0,0.00227272]
[1641895229680,0.40764138,41984.0,41983.0,0.00227272]
[1641895229878,0.40764138,41984.0,41983.0,0.00454544]
[1641895230979,0.38664138,41984.0,41983.0,0.00454544]
[1641895231681,2.07994438,41984.0,41983.0,0.00454544]
[1641895231880,2.07994438,41984.0,41970.0,0.00048361]
[1641895231881,0.27331145,41979.0,41971.0,0.119109]
[1641895232080,0.27331145,41979.0,41970.0,0.00048361]
[1641895232081,0.119126,41977.0,41970.0,0.00048361]
[1641895232280,0.373303,41976.0,41966.0,0.0022]
[1641895232479,0.01744929,41974.0,41970.0,0.00048367]
[1641895232679,0.373303,41973.0,41970.0,0.00048367]
[1641895233533,0.008,41973.0,41967.0,0.121319]
[1641895233735,0.008,41973.0,41970.0,0.00048369]
[1641895233935,0.32577766,41973.0,41970.0,0.00048369]
[1641895234737,0.31777766,41973.0,41968.0,0.059564]
[1641895234938,0.31777766,41973.0,41970.0,0.00048369]
[1641895235540,0.32477766,41973.0,41970.0,0.00048369]
[1641895235942,0.32477766,41973.0,41968.0,0.059564]
[1641895236141,0.32477766,41973.0,41970.0,0.00048369]
[1641895236342,0.32477766,41973.0,41972.0,0.04202297]
[1641895236542,0.69808066,41973.0,41972.0,0.04202297]
[1641895236775,0.69108066,41973.0,41972.0,0.04202297]
[1641895236978,0.05956693,41972.0,41970.0,0.00048369]
[1641895237176,0.05956693,41972.0,41967.0,0.0022]
[1641895237177,0.31860941,41971.0,41967.0,0.0022]
[1641895237375,0.37817641,41971.0,41970.0,0.00048369]
[1641895237777,0.7689287,41971.0,41970.0,0.00048369]
[1641895238176,0.8880617,41971.0,41970.0,0.00048369]
[1641895238378,0.059572,41970.0,41967.0,0.0022]
[1641895238577,0.059572,41970.0,41968.0,0.00048372]
[1641895238779,0.38472842,41969.0,41968.0,0.00048372]
[1641895239078,0.22593117,41972.0,41968.0,0.00048372]
[1641895239378,0.22593117,41972.0,41967.0,0.0022]
[1641895239379,0.21793117,41972.0,41967.0,0.25213663]
[1641895239580,0.22893117,41972.0,41967.0,0.0022]
[1641895239777,0.11914605,41970.0,41968.0,0.00048373]
[1641895240626,0.373303,41969.0,41968.0,0.00048373]
[1641895240827,0.43287436,41969.0,41967.0,0.00268375]
[1641895241127,0.10957136,41969.0,41967.0,0.00268375]
[1641895241325,0.0667492,41970.0,41967.0,0.00268375]
[1641895241326,0.1167492,41970.0,41967.0,0.00268375]
[1641895241526,0.0667492,41970.0,41967.0,0.00268375]
[1641895241728,0.011,41969.0,41967.0,0.00268375]
[1641895241928,0.011,41969.0,41967.0,0.0022]
[1641895242132,0.011,41969.0,41967.0,0.061765]
[1641895242928,0.1167492,41970.0,41967.0,0.061765]
[1641895243728,0.1337492,41970.0,41967.0,0.061765]
[1641895245581,0.1467492,41970.0,41967.0,0.061765]
[1641895246986,0.1167492,41970.0,41967.0,0.061765]
[1641895247586,0.1297492,41970.0,41967.0,0.061765]
[1641895248037,0.1297492,41970.0,41967.0,0.0022]
[1641895249537,0.1167492,41970.0,41967.0,0.0022]
[1641895249738,0.1297492,41970.0,41967.0,0.0022]
[1641895250938,0.1167492,41970.0,41967.0,0.0022]
[1641895251776,0.1297492,41970.0,41967.0,0.0022]
[1641895252978,0.1167492,41970.0,41967.0,0.061767]
[1641895253580,0.1317492,41970.0,41967.0,0.061767]
[1641895254784,0.1317492,41970.0,41967.0,0.0022]
[1641895254983,0.1167492,41970.0,41967.0,0.0022]
[1641895255186,0.17631932,41970.0,41967.0,0.0022]
[1641895255428,0.1167492,41970.0,41967.0,0.0022]
[1641895255628,0.1337492,41970.0,41967.0,0.0022]
[1641895255827,0.1337492,41970.0,41968.0,0.059566]
[1641895256829,0.1167492,41970.0,41968.0,0.059566]
[1641895257631,0.1627492,41970.0,41968.0,0.059566]
[1641895257836,0.1627492,41970.0,41969.0,0.31354317]
[1641895258035,0.1627492,41970.0,41967.0,0.00268375]
[1641895258833,0.1167492,41970.0,41967.0,0.00268375]
[1641895259279,0.1167492,41970.0,41967.0,0.30746066]
[1641895259682,0.1913172,41970.0,41967.0,0.06225075]
[1641895259978,0.059569,41969.0,41967.0,0.00268375]
[1641895260179,0.059569,41969.0,41967.0,0.0031675]
[1641895260482,0.059569,41969.0,41967.0,0.06225175]
[1641895260879,0.059569,41969.0,41967.0,0.35309276]
[1641895261080,0.059569,41969.0,41967.0,0.061768]
[1641895261581,0.109569,41969.0,41967.0,0.061768]
[1641895263130,0.109569,41969.0,41968.0,0.29475152]
[1641895264127,0.109569,41969.0,41967.0,0.061768]
[1641895264328,0.109569,41969.0,41967.0,0.0022]
[1641895265228,0.109569,41969.0,41968.0,0.26604484]
[1641895265427,0.109569,41969.0,41967.0,0.0022]
[1641895266684,0.109569,41969.0,41967.0,0.33337614]
[1641895267076,0.109569,41969.0,41967.0,0.39294414]
[1641895267676,0.118569,41969.0,41967.0,0.39294414]
[1641895267877,0.118569,41969.0,41967.0,0.061768]
[1641895268878,0.109569,41969.0,41967.0,0.34632493]
[1641895269881,0.109569,41969.0,41967.0,0.061768]
[1641895270524,0.109569,41969.0,41968.0,0.373647]
[1641895271524,0.109569,41969.0,41967.0,0.061768]
[1641895271925,0.109569,41969.0,41967.0,0.30396636]
[1641895272528,0.109569,41969.0,41968.0,0.373647]
[1641895272928,0.109569,41969.0,41968.0,0.75415977]
[1641895273130,0.05,41969.0,41968.0,0.75415977]
[1641895273327,0.00072807,41978.0,41968.0,0.8030129]
[1641895273530,0.00072807,41978.0,41972.0,0.059547]
[1641895273728,0.00072807,41978.0,41973.0,0.40634244]
[1641895274028,0.00072807,41978.0,41977.0,0.87237101]
[1641895274279,0.059546,41979.0,41977.0,1.27350073]
[1641895274479,0.059546,41979.0,41978.0,0.373647]
[1641895275079,1.0,41987.0,41978.0,0.373647]
[1641895275378,1.0,41987.0,41978.0,0.38918962]
[1641895275577,1.0,41987.0,41983.0,0.26377345]
[1641895275779,0.00072983,41985.0,41983.0,0.44285145]
[1641895275980,0.00072983,41985.0,41983.0,0.83132175]
[1641895276184,0.00072983,41985.0,41984.0,0.4]
[1641895276382,0.00072983,41985.0,41984.0,0.44887767]
[1641895276779,1.07,41987.0,41984.0,0.44887767]
[1641895276780,1.07,41987.0,41985.0,0.31516819]
[1641895276979,1.00072982,41987.0,41985.0,0.42229419]
[1641895277679,1.00072982,41987.0,41985.0,0.43529419]
[1641895277929,1.0,41987.0,41985.0,0.43529419]
[1641895278327,1.0,41987.0,41985.0,0.120126]
[1641895278927,1.0,41987.0,41985.0,0.107126]
[1641895279328,1.0,41987.0,41985.0,0.37983573]
[1641895279329,1.059533,41987.0,41985.0,0.37983573]
[1641895279528,1.0,41987.0,41986.0,0.38882123]
[1641895279729,1.0,41987.0,41986.0,0.50787523]
[1641895279930,1.00127699,41987.0,41986.0,0.51013937]
[1641895280131,1.00127699,41987.0,41986.0,0.12131814]
[1641895281034,1.05127699,41987.0,41986.0,0.12131814]
[1641895281238,1.05127699,41987.0,41986.0,0.00226414]
[1641895281239,1.37545096,41987.0,41986.0,0.00226414]
[1641895281433,1.42457999,41987.0,41986.0,0.00226414]
[1641895281690,1.49257999,41987.0,41986.0,0.00226414]
[1641895282085,1.49257999,41987.0,41976.0,0.009535]
[1641895282284,0.059557,41983.0,41976.0,0.009535]
[1641895282484,0.42767362,41986.0,41976.0,0.009535]
[1641895282684,1.11927699,41987.0,41976.0,0.53999682]
[1641895282884,0.00072795,41982.0,41976.0,0.53999682]
[1641895283287,0.059544,41980.0,41977.0,0.2782876]
[1641895283487,0.058044,41980.0,41977.0,0.2782876]
[1641895284088,0.058044,41980.0,41978.0,0.059543]
[1641895284888,0.058044,41980.0,41979.0,0.00115207]
[1641895284889,0.05859543,41980.0,41979.0,0.00115207]
[1641895285829,0.06659543,41980.0,41979.0,0.00115207]
[1641895286432,0.06659543,41980.0,41979.0,0.37479907]
[1641895286631,0.00855143,41980.0,41979.0,0.37479907]
[1641895287229,0.00055143,41980.0,41979.0,0.37479907]
[1641895289779,0.00072586,41980.0,41979.0,0.37479907]
[1641895294235,0.00072586,41980.0,41979.0,0.75897857]
[1641895294635,0.00127729,41980.0,41979.0,0.93335857]
[1641895294833,1.059525,41987.0,41980.0,0.373647]
[1641895295134,1.059525,41987.0,41981.0,0.30951433]
[1641895295135,0.00072804,41982.0,41981.0,0.30951433]
[1641895295333,0.00072804,41982.0,41981.0,0.68441871]
[1641895295634,0.00072804,41982.0,41981.0,0.70108238]
[1641895296033,1.0,41987.0,41986.0,0.30158306]
[1641895296234,1.05,41987.0,41986.0,0.59675317]
[1641895296691,1.05,41987.0,41986.0,0.29517011]
[1641895297082,1.05,41987.0,41986.0,0.059532]
[1641895297482,1.05,41987.0,41982.0,0.119081]
[1641895297883,1.06,41987.0,41982.0,0.119081]
[1641895298084,1.06,41987.0,41986.0,0.32476806]
[1641895298485,1.06072983,41987.0,41986.0,0.32476806]
[1641895299083,1.05072983,41987.0,41986.0,0.32476806]
[1641895299488,1.05,41987.0,41986.0,0.32476806]
[1641895299884,1.05272594,41987.0,41986.0,0.32681833]
[1641895300184,1.05272594,41987.0,41986.0,0.00205027]
[1641895301136,1.05072594,41987.0,41986.0,0.00205027]
[1641895301738,1.05272594,41987.0,41986.0,0.00205027]
[1641895303138,1.05072594,41987.0,41986.0,0.00205027]
[1641895305487,1.05072594,41987.0,41981.0,0.23661506]
[1641895305688,1.05072594,41987.0,41981.0,0.059542]
[1641895305888,0.05954,41983.0,41981.0,0.059542]
[1641895306189,0.169083,41983.0,41981.0,0.059542]
[1641895308432,0.10954,41983.0,41981.0,0.059542]
[1641895309632,0.10954,41983.0,41982.0,0.31448642]
[1641895309832,0.05072564,41983.0,41982.0,0.31448642]
[1641895310035,0.05072564,41983.0,41982.0,0.38233642]
[1641895310432,0.00072564,41983.0,41982.0,0.76302451]
[1641895310633,0.00072564,41983.0,41982.0,1.13667151]
[1641895311782,0.05072564,41983.0,41982.0,1.13667151]
[1641895313182,0.04216852,41983.0,41982.0,1.13667151]
[1641895314883,0.04272769,41983.0,41982.0,1.13807089]
[1641895317434,0.04272769,41983.0,41982.0,0.82358447]
[1641895317634,0.04272769,41983.0,41982.0,0.44289638]
[1641895318837,0.04272769,41983.0,41982.0,0.37504638]
[1641895319881,0.04372425,41983.0,41982.0,0.37504638]
[1641895321984,0.04372425,41983.0,41982.0,0.00139938]
[1641895322584,0.04372425,41983.0,41978.0,0.009535]
[1641895322585,0.059544,41982.0,41978.0,0.009535]
[1641895323036,0.059543,41981.0,41980.0,0.119085]
[1641895323434,0.059544,41982.0,41980.0,0.119085]
[1641895324834,0.00075648,41981.0,41980.0,0.119085]
[1641895325638,0.00075648,41981.0,41980.0,0.492732]
[1641895326437,0.178624,41984.0,41983.0,0.37700517]
[1641895326688,0.178624,41984.0,41982.0,0.05954]
[1641895329781,0.178624,41984.0,41983.0,0.00125755]
[1641895334034,0.178624,41984.0,41983.0,0.02425755]
[1641895334787,0.17917088,41984.0,41983.0,0.02425755]
[1641895335186,0.17917088,41984.0,41983.0,0.00125755]
[1641895335586,0.059541,41985.0,41983.0,0.00125755]
[1641895335786,0.00085564,41986.0,41984.0,0.0476]
[1641895335990,0.17858,41991.0,41984.0,0.08926669]
[1641895336289,0.17858,41991.0,41985.0,0.02647645]
[1641895336488,0.059521,41988.0,41986.0,0.0476]
[1641895336687,0.17858,41991.0,41988.0,0.45503898]
[1641895336889,0.17858,41991.0,41989.0,0.39725674]
[1641895337089,0.119024,41994.0,41990.0,0.24891315]
[1641895337287,0.37669726,41999.0,41994.0,0.00127477]
[1641895337488,0.059517,41997.0,41995.0,0.0476]
[1641895338644,0.059517,41997.0,41996.0,0.38766489]
[1641895339239,0.059517,41997.0,41996.0,0.44718189]
[1641895339840,0.11988854,41999.0,41996.0,0.44867575]
[1641895340039,0.11988854,41999.0,41996.0,0.56367575]
[1641895340440,0.119033,41999.0,41996.0,0.56367575]
[1641895340639,0.119033,41999.0,41998.0,0.373647]
[1641895341040,0.119033,41999.0,41998.0,0.85199785]
[1641895341540,0.059505,42000.0,41998.0,0.89959785]
[1641895341783,0.119001,42002.0,41998.0,0.89959785]
[1641895341784,0.00085552,42001.0,41999.0,0.76444483]
[1641895341983,0.00085552,42001.0,42000.0,0.42248742]
[1641895342784,0.119001,42002.0,42000.0,0.42248742]
[1641895342984,0.119001,42002.0,42001.0,0.373647]
[1641895343183,0.119001,42002.0,42001.0,0.421247]
[1641895343786,0.119001,42002.0,42001.0,0.0476]
[1641895343989,0.120001,42002.0,42001.0,0.1066]
[1641895344184,0.16448028,42002.0,42001.0,0.1066]
[1641895344384,0.120001,42002.0,42001.0,0.1066]
[1641895344785,0.120001,42002.0,42001.0,0.10747919]
[1641895344984,0.16940519,42002.0,42001.0,0.05987919]
[1641895345286,0.120001,42002.0,42001.0,0.05987919]
[1641895345929,0.120001,42002.0,42001.0,0.11787919]
[1641895346731,0.001,42002.0,42001.0,0.11787919]
[1641895347133,0.001,42002.0,42001.0,0.05887919]
[1641895347332,0.119007,42003.0,42002.0,0.31090601]
[1641895347931,0.119007,42003.0,42002.0,0.34290601]
[1641895348132,0.119007,42003.0,42002.0,0.7856338]
[1641895348832,0.119007,42003.0,42002.0,1.1638921]
[1641895349035,0.357201,42008.0,42002.0,0.9950238]
[1641895349288,0.5473,42011.0,42007.0,0.00125127]
[1641895349488,0.9221,42013.0,42010.0,0.00123319]
[1641895349686,0.11898,42012.0,42011.0,0.0476]
[1641895350586,0.11898,42012.0,42011.0,0.107087]
[1641895351888,0.11898,42012.0,42011.0,0.122087]
[1641895353039,0.059488,42013.0,42011.0,0.495734]
[1641895353239,0.059488,42013.0,42012.0,0.373647]
[1641895353439,0.059488,42013.0,42012.0,0.421247]
[1641895353639,0.059488,42013.0,42012.0,1.00101815]
[1641895353940,0.059488,42013.0,42012.0,1.01901815]
[1641895354739,0.059488,42013.0,42012.0,1.02063577]
[1641895355141,0.059488,42013.0,42012.0,1.00263577]
[1641895355340,0.059488,42013.0,42012.0,0.90263577]
[1641895355941,0.059488,42013.0,42012.0,0.91963577]
[1641895357194,0.059484,42014.0,42012.0,1.00263577]
[1641895357390,0.059188,42014.0,42013.0,0.373647]
[1641895357592,0.059188,42014.0,42013.0,0.0476]
[1641895357991,0.059188,42014.0,42013.0,0.0626]
[1641895359197,0.059188,42014.0,42013.0,0.0476]
[1641895359898,0.059188,42014.0,42013.0,0.0486691]
[1641895360098,0.059188,42014.0,42013.0,0.44187193]
[1641895360536,0.059188,42014.0,42013.0,0.0636691]
[1641895361136,0.059188,42014.0,42013.0,0.0486691]
[1641895361937,0.059188,42014.0,42013.0,0.0646691]
[1641895363142,0.059188,42014.0,42013.0,0.0486691]
[1641895363941,0.059188,42014.0,42013.0,0.0996691]
[1641895365193,0.059188,42014.0,42013.0,0.0486691]
[1641895365594,0.059188,42014.0,42013.0,0.0010691]
[1641895365798,0.059188,42014.0,42012.0,0.06145446]
[1641895365799,0.04676142,42013.0,42012.0,0.0009877]
[1641895365996,0.059188,42014.0,42013.0,0.074]
[1641895366394,0.432491,42014.0,42006.0,0.178484]
[1641895366596,0.059507,42010.0,42006.0,0.178484]
[1641895367397,0.059507,42010.0,42008.0,0.059509]
[1641895367594,0.11901833,42010.0,42008.0,0.059509]
[1641895367794,0.31242042,42009.0,42008.0,0.059509]
[1641895368039,0.31242042,42009.0,42008.0,0.084509]
[1641895368640,0.31242042,42009.0,41995.0,0.059512]
[1641895368840,0.05951,42008.0,41998.0,0.00127426]
[1641895369440,0.00085544,42007.0,41998.0,0.00127426]
[1641895369639,0.00085544,42007.0,42001.0,0.32206914]
[1641895369840,0.17853,42005.0,42004.0,0.059508]
[1641895370240,0.17853,42005.0,42004.0,0.433155]
[1641895372090,0.18153,42005.0,42004.0,0.481155]
[1641895373292,0.17853,42005.0,42004.0,0.433155]
[1641895374092,0.17953,42005.0,42004.0,0.480155]
[1641895374692,0.18156677,42005.0,42004.0,0.48227456]
[1641895375297,0.18056677,42005.0,42004.0,0.43527456]
[1641895375956,0.18056677,42005.0,42004.0,0.48227456]
[1641895375957,0.18256677,42005.0,42004.0,0.48227456]
[1641895376256,0.18256677,42005.0,42004.0,0.93227456]
[1641895377256,0.18056677,42005.0,42004.0,0.88527456]
[1641895377457,0.18056677,42005.0,42004.0,0.43527456]
[1641895377959,0.23056677,42005.0,42004.0,0.47127456]
[1641895379193,0.23056677,42005.0,42004.0,0.43527456]
[1641895379789,0.23079357,42005.0,42004.0,0.43527456]
[1641895379989,0.23079357,42005.0,42004.0,0.46727456]
[1641895380792,0.23079357,42005.0,42004.0,0.03411956]
[1641895380793,0.60070051,42005.0,42004.0,0.03411956]
[1641895380992,0.60070051,42005.0,42003.0,0.119016]
[1641895380993,0.23079357,42005.0,42003.0,0.119016]
[1641895381191,0.60070051,42005.0,42003.0,0.119016]
[1641895381393,0.23079357,42005.0,42003.0,0.119016]
[1641895381692,0.60070051,42005.0,42003.0,0.119016]
[1641895381991,0.24079357,42005.0,42003.0,0.119016]
[1641895383242,0.23079357,42005.0,42003.0,0.119016]
[1641895383440,0.53829823,42005.0,42003.0,0.119016]
[1641895383841,0.30893788,42004.0,42003.0,0.119016]
[1641895384441,0.059514,42003.0,41995.0,0.178526]
[1641895384641,0.42796588,42004.0,41995.0,0.178526]
[1641895384642,0.178542,42002.0,41995.0,0.178526]
[1641895385041,0.178542,42002.0,41998.0,0.059514]
[1641895385042,0.228542,42002.0,41998.0,0.059514]
[1641895385441,0.119028,42001.0,41999.0,0.30104351]
[1641895386043,0.121028,42001.0,41999.0,0.30104351]
[1641895387288,0.119028,42001.0,41999.0,0.30104351]
[1641895388088,0.123028,42001.0,41999.0,0.30104351]
[1641895388989,0.123028,42001.0,41998.0,0.059514]
[1641895389390,0.119028,42001.0,41998.0,0.059514]
[1641895389789,0.0005916,42000.0,41998.0,0.059514]
[1641895389988,0.0005916,42000.0,41998.0,0.29662403]
[1641895390745,0.12413535,42001.0,42000.0,0.60589026]
[1641895391345,0.12013535,42001.0,42000.0,0.60589026]
[1641895392147,0.12813535,42001.0,42000.0,0.60589026]
[1641895392347,0.00910735,42001.0,42000.0,0.60589026]
[1641895393347,0.00110735,42001.0,42000.0,0.60589026]
[1641895394194,0.00810735,42001.0,42000.0,0.60589026]
[1641895394788,0.00874119,42001.0,42000.0,0.60725723]
[1641895395392,0.00174119,42001.0,42000.0,0.60725723]
[1641895395793,0.00174119,42001.0,42000.0,0.00136697]
[1641895395994,0.00174119,42001.0,42000.0,0.67503986]
[1641895396199,0.00774119,42001.0,42000.0,0.67503986]
[1641895397397,0.00174119,42001.0,42000.0,0.67503986]
[1641895398045,0.20328319,42002.0,42000.0,0.67503986]
[1641895398245,0.20328319,42002.0,42000.0,0.73454486]
[1641895399846,0.00086616,42001.0,42000.0,0.73427187]
[1641895400845,0.0408054,42001.0,42000.0,0.73427187]
[1641895401046,0.00086616,42001.0,42000.0,0.67476687]
[1641895402195,0.00486616,42001.0,42000.0,0.67476687]
[1641895402595,0.00486616,42001.0,42000.0,0.19859687]
[1641895402796,0.00486616,42001.0,42000.0,0.13906987]
[1641895403096,0.77423466,42001.0,41990.0,0.370984]
[1641895403295,0.05952963,41996.0,41990.0,0.1]
[1641895403496,0.05,41996.0,41990.0,0.1]
[1641895403897,0.059529,41994.0,41991.0,0.059528]
[1641895404299,0.059529,41993.0,41991.0,0.059528]
[1641895404697,0.109529,41994.0,41992.0,0.00171336]
[1641895404898,0.059528,41993.0,41992.0,0.00171336]
[1641895405845,0.22858435,41994.0,41992.0,0.06124036]
[1641895406045,0.008,41993.0,41992.0,0.06124036]
[1641895406246,0.008,41993.0,41989.0,0.119057]
[1641895406446,0.05953,41992.0,41989.0,0.119057]
[1641895406646,0.05953,41992.0,41990.0,0.00048279]
[1641895407250,0.11906076,41992.0,41990.0,0.00048279]
[1641895407648,0.05953,41992.0,41989.0,0.119057]
[1641895407849,0.05953,41992.0,41989.0,0.119413]
[1641895408049,0.06753,41992.0,41989.0,0.119413]
[1641895408849,0.06753,41992.0,41989.0,0.119057]
[1641895409297,0.05953,41992.0,41989.0,0.119057]
[1641895409896,0.0005615,41991.0,41989.0,0.119057]
[1641895410298,0.0005615,41991.0,41990.0,0.373647]
[1641895412951,0.0005615,41991.0,41990.0,0.96797624]
[1641895413149,0.00081551,41994.0,41991.0,0.723647]
[1641895413447,0.00081551,41994.0,41993.0,0.37490903]
[1641895413648,0.9991,42013.0,41993.0,0.93175037]
[1641895413649,0.059507,41999.0,41993.0,0.93175037]
[1641895413847,0.059507,41999.0,41997.0,1.01753767]
[1641895414047,0.2915,42009.0,41998.0,0.74340056]
[1641895414249,0.238085,42003.0,42001.0,0.4512996]
[1641895414848,0.119014,42002.0,42001.0,0.4512996]
[1641895415748,0.119014,42002.0,42001.0,0.8249466]
[1641895416149,0.169014,42002.0,42001.0,0.8419466]
[1641895417297,0.169014,42002.0,42001.0,0.8249466]
[1641895418094,0.169014,42002.0,42001.0,0.8459466]
[1641895419496,0.169014,42002.0,42001.0,0.8249466]
[1641895419697,0.16929508,42002.0,42001.0,0.37575445]
[1641895419900,0.16929508,42002.0,42001.0,0.00210745]
[1641895420099,0.16929508,42002.0,42001.0,0.02310745]
[1641895421346,0.16929508,42002.0,42001.0,0.00210745]
[1641895422145,0.20645957,42002.0,42001.0,0.02410745]
[1641895423345,0.51304224,42002.0,42001.0,0.02410745]
[1641895423545,0.20645957,42002.0,42001.0,0.00210745]
[1641895424204,0.50918005,42002.0,42001.0,0.02410745]
[1641895424397,0.47201556,42002.0,42001.0,0.02410745]
[1641895424596,0.47201556,42002.0,41999.0,0.119013]
[1641895424597,0.03469395,42000.0,41999.0,0.059522]
[1641895424796,0.059524,41995.0,41990.0,0.00038142]
[1641895424995,0.45498041,41995.0,41991.0,0.373647]
[1641895425199,0.45498041,41995.0,41990.0,0.00038142]
[1641895425596,0.45498041,41995.0,41987.0,0.00124175]
[1641895425797,0.45579302,41995.0,41990.0,0.00038147]
[1641895425997,0.45579302,41995.0,41991.0,0.059523]
[1641895425998,0.14826562,41995.0,41991.0,0.059523]
[1641895426295,0.15626562,41995.0,41991.0,0.059523]
[1641895426799,0.10545301,41995.0,41992.0,0.119052]
[1641895426997,0.06833666,41995.0,41993.0,0.70212834]
[1641895427196,0.06833666,41995.0,41994.0,0.373647]
[1641895427799,0.06833666,41995.0,41993.0,0.059515]
[1641895428052,0.109524,41995.0,41993.0,0.059515]
[1641895428252,0.114524,41995.0,41993.0,0.059515]
[1641895429453,0.109524,41995.0,41993.0,0.059515]
[1641895429854,0.11004846,41995.0,41993.0,0.059515]
[1641895430256,0.11504846,41995.0,41993.0,0.059515]
[1641895430854,0.11504846,41995.0,41994.0,0.68078259]
[1641895431057,0.11504846,41995.0,41994.0,1.05442959]
[1641895431703,0.41750793,41995.0,41994.0,1.05442959]
[1641895431897,0.41250793,41995.0,41994.0,1.05442959]
[1641895432300,0.42050793,41995.0,41994.0,1.05442959]
[1641895432800,0.42050793,41995.0,41994.0,0.57819059]
[1641895433003,0.42050793,41995.0,41994.0,0.20454359]
[1641895433298,0.059533,41993.0,41990.0,0.00038155]
[1641895433497,0.34809949,41992.0,41990.0,0.00038155]
[1641895433897,0.39809949,41992.0,41988.0,0.009533]
[1641895434098,0.39809949,41992.0,41989.0,0.00038159]
[1641895434099,0.05953462,41991.0,41989.0,0.00038159]
[1641895434299,0.34481966,41990.0,41989.0,0.05991659]
[1641895434498,0.34481966,41990.0,41988.0,0.009533]
[1641895434698,0.40435466,41990.0,41988.0,0.009533]
[1641895434900,0.39410323,41989.0,41988.0,0.009533]
[1641895435200,0.39410323,41989.0,41976.0,0.00123594]
[1641895435201,0.05954012,41987.0,41976.0,0.00123594]
[1641895435452,0.05954,41983.0,41981.0,0.119082]
[1641895435755,0.05,41983.0,41981.0,0.119082]
[1641895436151,0.055,41983.0,41981.0,0.42115274]
[1641895436553,0.114539,41983.0,41981.0,0.42115274]
[1641895437355,0.109539,41983.0,41981.0,0.42115274]
[1641895437555,0.059539,41983.0,41981.0,0.42115274]
[1641895437856,0.059526,41985.0,41982.0,0.373647]
[1641895438054,0.059526,41985.0,41983.0,0.059527]
[1641895438454,0.84355555,41992.0,41983.0,0.059527]
[1641895438657,0.32278398,41993.0,41983.0,0.059527]
[1641895438857,0.05,41992.0,41983.0,0.059527]
[1641895439055,0.119049,41987.0,41983.0,0.059527]
[1641895439500,0.05,41986.0,41983.0,0.059527]
[1641895439704,0.059528,41985.0,41984.0,0.27461058]
[1641895439899,0.0599346,41985.0,41984.0,0.27581347]
[1641895440302,0.0599346,41985.0,41984.0,0.00120289]
[1641895442705,0.0599346,41985.0,41984.0,0.75593317]
[1641895442947,0.0004066,41985.0,41984.0,0.75593317]
[1641895444046,0.0004066,41985.0,41984.0,0.47484989]
[1641895444648,0.0004066,41985.0,41984.0,0.37484989]
[1641895444849,0.00065389,41985.0,41984.0,0.37484989]
[1641895446896,0.05065389,41985.0,41984.0,0.37484989]
[1641895447194,0.00065389,41985.0,41984.0,0.37484989]
[1641895447396,0.00065389,41985.0,41984.0,0.47484989]
[1641895448996,0.00065389,41985.0,41984.0,0.37484989]
[1641895449896,0.00108426,41985.0,41984.0,0.37484989]
[1641895451853,0.05108426,41985.0,41984.0,0.37484989]
[1641895452053,0.00108426,41985.0,41984.0,0.37484989]
[1641895452254,0.05108426,41985.0,41984.0,0.37484989]
[1641895452454,0.00108426,41985.0,41984.0,0.37484989]
[1641895452655,0.05108426,41985.0,41984.0,0.37484989]
[1641895452854,0.00108426,41985.0,41984.0,0.37484989]
[1641895455106,0.00108426,41985.0,41984.0,0.84960274]
[1641895457002,0.00108426,41985.0,41984.0,0.47484989]
[1641895457199,0.00108426,41985.0,41984.0,0.37484989]
[1641895458046,0.05108426,41985.0,41984.0,0.37484989]
[1641895458246,0.00108426,41985.0,41984.0,0.37484989]
[1641895458450,0.41529232,41985.0,41984.0,0.37484989]
[1641895458651,0.41529232,41985.0,41984.0,0.00120289]
[1641895458951,0.76529232,41985.0,41984.0,0.00120289]
[1641895459348,0.41529232,41985.0,41984.0,0.00120289]
[1641895459547,0.05108426,41985.0,41984.0,0.00120289]
[1641895459747,0.05108426,41985.0,41983.0,0.06072989]
[1641895459948,0.06062426,41985.0,41983.0,0.06072989]
[1641895460146,0.11062426,41985.0,41983.0,0.06072989]
[1641895460347,0.11962426,41985.0,41983.0,0.06072989]
[1641895460548,0.33961486,41984.0,41983.0,0.06072989]
[1641895462202,0.34961486,41984.0,41983.0,0.06072989]
[1641895462400,0.3567884,41984.0,41983.0,0.06072989]
[1641895462800,0.05535665,41985.0,41983.0,0.06072989]
[1641895463001,0.00535665,41985.0,41983.0,0.06072989]